[Event "Live Chess"]
[Site "Chess.com"]
[Date "2023.05.21"]
[Round "-"]
[White "therealab0ne"]
[Black "PaulyD81"]
[Result "1-0"]
[WhiteElo "760"]
[BlackElo "1145"]
[TimeControl "300"]
[EndTime "8:14:31 PDT"]
[Termination "therealab0ne won on time"]

1. e4 {[%clk 0:04:57.7]} 1... d5 {[%clk 0:04:57.8]} 2. exd5 {[%clk 0:04:56.5]}
2... Qxd5 {[%clk 0:04:57.7]} 3. Nc3 {[%clk 0:04:55.9]} 3... Qa5 {[%clk 0:04:56]}
4. Bc4 {[%clk 0:04:54.7]} 4... Qe5+ {[%clk 0:04:39.6]} 5. Nge2 {[%clk
0:04:48.2]} 5... Bg4 {[%clk 0:04:32.4]} 6. d3 {[%clk 0:04:42.8]} 6... Bxe2
{[%clk 0:04:29.1]} 7. Nxe2 {[%clk 0:04:41.5]} 7... Nc6 {[%clk 0:04:18.3]} 8. Bf4
{[%clk 0:04:34.3]} 8... Qa5+ {[%clk 0:04:07.3]} 9. Bd2 {[%clk 0:04:27.6]} 9...
Qe5 {[%clk 0:04:02.6]} 10. c3 {[%clk 0:04:13.9]} 10... e6 {[%clk 0:03:54.4]} 11.
d4 {[%clk 0:04:06.8]} 11... Qd6 {[%clk 0:03:28.4]} 12. O-O {[%clk 0:04:01]}
12... Nf6 {[%clk 0:03:26]} 13. Bf4 {[%clk 0:03:55.4]} 13... Qd8 {[%clk
0:03:13.2]} 14. Bg5 {[%clk 0:03:45.4]} 14... Be7 {[%clk 0:03:08.2]} 15. Re1
{[%clk 0:03:33.7]} 15... O-O {[%clk 0:03:05.4]} 16. Ng3 {[%clk 0:03:20.8]} 16...
h6 {[%clk 0:02:57.4]} 17. Bxf6 {[%clk 0:03:19.4]} 17... Bxf6 {[%clk 0:02:55.8]}
18. Qg4 {[%clk 0:03:17.5]} 18... Qe7 {[%clk 0:02:17.1]} 19. Nh5 {[%clk
0:03:02.7]} 19... Rad8 {[%clk 0:01:52.7]} 20. Re3 {[%clk 0:02:37.4]} 20... Na5
{[%clk 0:01:50.7]} 21. Rf3 {[%clk 0:02:36]} 21... Kh8 {[%clk 0:01:37.9]} 22.
Rxf6 {[%clk 0:02:20.3]} 22... g6 {[%clk 0:01:20.7]} 23. Bxe6 {[%clk 0:01:21.4]}
23... fxe6 {[%clk 0:00:44.6]} 24. Rxf8+ {[%clk 0:01:19.2]} 24... Qxf8 {[%clk
0:00:37.6]} 25. Qxe6 {[%clk 0:01:08]} 25... gxh5 {[%clk 0:00:32.1]} 26. Re1
{[%clk 0:01:02.8]} 26... Re8 {[%clk 0:00:29.6]} 27. Qxe8 {[%clk 0:00:57]} 27...
Qxe8 {[%clk 0:00:24.2]} 28. Kf1 {[%clk 0:00:56.8]} 28... Qf7 {[%clk 0:00:21.6]}
29. f3 {[%clk 0:00:52.4]} 29... Kg7 {[%clk 0:00:20.6]} 30. g4 {[%clk 0:00:51.5]}
30... Qc4+ {[%clk 0:00:19.4]} 31. Re2 {[%clk 0:00:49]} 31... Qxa2 {[%clk
0:00:17.6]} 32. Kf2 {[%clk 0:00:44.8]} 32... Qxb2 {[%clk 0:00:16.5]} 33. Rxb2
{[%clk 0:00:43.4]} 33... Nc4 {[%clk 0:00:15.7]} 34. Rxb7 {[%clk 0:00:41.6]}
34... Nd2 {[%clk 0:00:14]} 35. Rxc7+ {[%clk 0:00:40.1]} 35... Kg6 {[%clk
0:00:10.3]} 36. gxh5+ {[%clk 0:00:39.3]} 36... Kxh5 {[%clk 0:00:09.2]} 37. Rc5+
{[%clk 0:00:38.1]} 37... Kg6 {[%clk 0:00:08]} 38. Ke3 {[%clk 0:00:28.1]} 38...
Nf1+ {[%clk 0:00:05.8]} 39. Kf4 {[%clk 0:00:26.5]} 39... h5 {[%clk 0:00:04.6]}
40. Rg5+ {[%clk 0:00:24.6]} 40... Kh6 {[%clk 0:00:02.9]} 41. h4 {[%clk
0:00:22.8]} 1-0

[Event "Live Chess"]
[Site "Chess.com"]
[Date "2023.05.21"]
[Round "-"]
[White "Rusty_Bridges"]
[Black "HonestJoe1"]
[Result "0-1"]
[WhiteElo "1523"]
[BlackElo "2098"]
[TimeControl "300"]
[EndTime "8:14:35 PDT"]
[Termination "HonestJoe1 won by resignation"]

1. e4 {[%clk 0:04:55.1]} 1... c5 {[%clk 0:04:58.9]} 2. Be2 {[%clk 0:04:51.1]}
2... Nc6 {[%clk 0:04:57]} 3. f4 {[%clk 0:04:50]} 3... g6 {[%clk 0:04:54.9]} 4.
Nf3 {[%clk 0:04:49]} 4... Bg7 {[%clk 0:04:54]} 5. Nc3 {[%clk 0:04:46.9]} 5... d6
{[%clk 0:04:52]} 6. d3 {[%clk 0:04:44.4]} 6... Nf6 {[%clk 0:04:51]} 7. Be3
{[%clk 0:04:43]} 7... O-O {[%clk 0:04:49.5]} 8. O-O {[%clk 0:04:41.2]} 8... Ng4
{[%clk 0:04:41.1]} 9. Bf2 {[%clk 0:04:37.3]} 9... Nxf2 {[%clk 0:04:36.3]} 10.
Rxf2 {[%clk 0:04:35.8]} 10... Nd4 {[%clk 0:04:35.3]} 11. Nxd4 {[%clk 0:04:24.4]}
11... Bxd4 {[%clk 0:04:33.8]} 12. Qe1 {[%clk 0:04:13.3]} 12... Bd7 {[%clk
0:04:28.6]} 13. Kh1 {[%clk 0:04:09.8]} 13... Bxf2 {[%clk 0:04:27.2]} 14. Qxf2
{[%clk 0:04:09.7]} 14... Bc6 {[%clk 0:04:25.9]} 15. h4 {[%clk 0:04:04.9]} 15...
e6 {[%clk 0:04:15.1]} 16. h5 {[%clk 0:04:03.3]} 16... Kg7 {[%clk 0:04:09.1]} 17.
hxg6 {[%clk 0:03:58.6]} 17... hxg6 {[%clk 0:04:07.5]} 18. g3 {[%clk 0:03:54.6]}
18... Rh8+ {[%clk 0:04:03]} 19. Kg2 {[%clk 0:03:53.6]} 19... Qe7 {[%clk
0:03:49.8]} 20. Rh1 {[%clk 0:03:35.1]} 20... Rxh1 {[%clk 0:03:47.6]} 21. Kxh1
{[%clk 0:03:35]} 21... Rh8+ {[%clk 0:03:46.3]} 22. Kg2 {[%clk 0:03:34.2]} 22...
Qf6 {[%clk 0:03:28.4]} 23. Bf3 {[%clk 0:03:31.6]} 23... Qd4 {[%clk 0:03:22.9]}
24. Qxd4+ {[%clk 0:03:26.3]} 24... cxd4 {[%clk 0:03:22]} 25. Ne2 {[%clk
0:03:25.3]} 25... e5 {[%clk 0:03:21.2]} 26. fxe5 {[%clk 0:03:23.5]} 26... dxe5
{[%clk 0:03:20.3]} 27. c3 {[%clk 0:03:16.4]} 27... dxc3 {[%clk 0:03:17.1]} 28.
bxc3 {[%clk 0:03:12]} 28... Rd8 {[%clk 0:03:15.6]} 29. d4 {[%clk 0:03:09.9]}
29... Bb5 {[%clk 0:03:10.8]} 30. d5 {[%clk 0:03:03.4]} 30... Rc8 {[%clk
0:03:05.4]} 31. Bg4 {[%clk 0:02:31.8]} 31... Rd8 {[%clk 0:02:45.5]} 32. Kf2
{[%clk 0:02:28.2]} 32... Kf6 {[%clk 0:02:42.1]} 33. Ke3 {[%clk 0:02:25.4]} 33...
Kg5 {[%clk 0:02:34.5]} 34. Bf3 {[%clk 0:02:20.2]} 34... f5 {[%clk 0:02:25.5]}
35. exf5 {[%clk 0:02:15.4]} 35... gxf5 {[%clk 0:02:24.5]} 36. Bg2 {[%clk
0:01:57.6]} 36... Bxe2 {[%clk 0:02:18.7]} 37. Kxe2 {[%clk 0:01:55.6]} 37... Kg4
{[%clk 0:02:13.6]} 38. c4 {[%clk 0:01:35]} 38... Kxg3 {[%clk 0:02:09.8]} 39. Bh1
{[%clk 0:01:31.6]} 39... e4 {[%clk 0:02:05]} 40. c5 {[%clk 0:01:27]} 40... Kf4
{[%clk 0:02:01.7]} 41. Kd2 {[%clk 0:01:16.7]} 41... Ke5 {[%clk 0:01:59.9]} 42.
d6 {[%clk 0:01:14.8]} 42... Kd5 {[%clk 0:01:56.6]} 0-1

[Event "Live Chess"]
[Site "Chess.com"]
[Date "2023.05.21"]
[Round "-"]
[White "Ian-Morley"]
[Black "Dhaydon19"]
[Result "0-1"]
[WhiteElo "1112"]
[BlackElo "2689"]
[TimeControl "300"]
[EndTime "8:14:49 PDT"]
[Termination "Dhaydon19 won by checkmate"]

1. e4 {[%clk 0:04:56]} 1... e6 {[%clk 0:04:59.2]} 2. d4 {[%clk 0:04:51.7]} 2...
d5 {[%clk 0:04:57.5]} 3. exd5 {[%clk 0:04:49.9]} 3... exd5 {[%clk 0:04:56.5]} 4.
Nd2 {[%clk 0:04:47.9]} 4... Nf6 {[%clk 0:04:56.1]} 5. b3 {[%clk 0:04:47.3]} 5...
Be7 {[%clk 0:04:55.7]} 6. Bb2 {[%clk 0:04:46.9]} 6... O-O {[%clk 0:04:55.3]} 7.
Ngf3 {[%clk 0:04:45.7]} 7... c6 {[%clk 0:04:55.2]} 8. Bd3 {[%clk 0:04:43.2]}
8... Bg4 {[%clk 0:04:53.9]} 9. O-O {[%clk 0:04:40.1]} 9... Nbd7 {[%clk 0:04:53]}
10. h3 {[%clk 0:04:39.1]} 10... Bh5 {[%clk 0:04:52]} 11. g4 {[%clk 0:04:29.4]}
11... Bg6 {[%clk 0:04:50.8]} 12. Bxg6 {[%clk 0:04:28.7]} 12... hxg6 {[%clk
0:04:50.4]} 13. Ne5 {[%clk 0:04:27.8]} 13... Bd6 {[%clk 0:04:49.4]} 14. Nxd7
{[%clk 0:04:26.6]} 14... Nxd7 {[%clk 0:04:46.8]} 15. Re1 {[%clk 0:04:26.3]}
15... Qf6 {[%clk 0:04:44.9]} 16. Qf3 {[%clk 0:04:21.4]} 16... Qg5 {[%clk
0:04:43.2]} 17. Bc1 {[%clk 0:04:11.2]} 17... Qh4 {[%clk 0:04:41.5]} 18. Qg2
{[%clk 0:04:08.9]} 18... Rae8 {[%clk 0:04:33.4]} 19. Nf3 {[%clk 0:04:02.1]}
19... Rxe1+ {[%clk 0:04:30.6]} 20. Nxe1 {[%clk 0:04:01.1]} 20... f5 {[%clk
0:04:28]} 21. Nf3 {[%clk 0:03:58.8]} 21... Qf6 {[%clk 0:04:26.3]} 22. gxf5
{[%clk 0:03:53.5]} 22... Qxf5 {[%clk 0:04:25]} 23. c3 {[%clk 0:03:41.8]} 23...
Qxf3 {[%clk 0:04:22.7]} 24. Qxf3 {[%clk 0:03:41.1]} 24... Rxf3 {[%clk
0:04:21.2]} 25. Kg2 {[%clk 0:03:39.7]} 25... Rxc3 {[%clk 0:04:19.9]} 26. Bb2
{[%clk 0:03:38.1]} 26... Rc2 {[%clk 0:04:18.9]} 27. Rb1 {[%clk 0:03:31.5]} 27...
Nf6 {[%clk 0:04:18.2]} 28. a3 {[%clk 0:03:22.7]} 28... Ne4 {[%clk 0:04:16.6]}
29. Kg1 {[%clk 0:03:14.9]} 29... Nxf2 {[%clk 0:04:11.5]} 30. b4 {[%clk
0:03:13.5]} 30... Nxh3+ {[%clk 0:04:09.6]} 31. Kh1 {[%clk 0:03:11.1]} 31... Rh2#
{[%clk 0:04:08]} 0-1

[Event "Live Chess"]
[Site "Chess.com"]
[Date "2023.05.21"]
[Round "-"]
[White "wot-not"]
[Black "NatashaRegan"]
[Result "0-1"]
[WhiteElo "1517"]
[BlackElo "1716"]
[TimeControl "300"]
[EndTime "8:15:04 PDT"]
[Termination "NatashaRegan won by checkmate"]

1. d4 {[%clk 0:04:40.5]} 1... f5 {[%clk 0:04:57.4]} 2. c4 {[%clk 0:04:39.3]}
2... Nf6 {[%clk 0:04:55.5]} 3. Nc3 {[%clk 0:04:33.6]} 3... g6 {[%clk 0:04:53.7]}
4. Bg5 {[%clk 0:04:30]} 4... Bg7 {[%clk 0:04:51.9]} 5. Bxf6 {[%clk 0:04:18.5]}
5... Bxf6 {[%clk 0:04:48]} 6. e4 {[%clk 0:04:18]} 6... d6 {[%clk 0:04:42.1]} 7.
Nf3 {[%clk 0:04:10.4]} 7... O-O {[%clk 0:04:36.6]} 8. Be2 {[%clk 0:03:59.4]}
8... Nc6 {[%clk 0:04:32.3]} 9. O-O {[%clk 0:03:54.8]} 9... Bg7 {[%clk
0:04:01.2]} 10. Qd2 {[%clk 0:03:38.4]} 10... f4 {[%clk 0:03:47.4]} 11. Rad1
{[%clk 0:03:33]} 11... Bd7 {[%clk 0:03:42.5]} 12. h4 {[%clk 0:03:20.3]} 12... e5
{[%clk 0:03:35.6]} 13. d5 {[%clk 0:03:09.4]} 13... Ne7 {[%clk 0:03:30.8]} 14. h5
{[%clk 0:03:08.4]} 14... Qe8 {[%clk 0:03:23.1]} 15. hxg6 {[%clk 0:02:59.7]}
15... Qxg6 {[%clk 0:03:20.5]} 16. Nh2 {[%clk 0:02:32.5]} 16... Bh3 {[%clk
0:03:14.7]} 17. Bf3 {[%clk 0:02:26.2]} 17... Kh8 {[%clk 0:03:04.7]} 18. Qe2
{[%clk 0:02:19]} 18... Rg8 {[%clk 0:02:57.1]} 19. Bg4 {[%clk 0:02:17.6]} 19...
Bxg2 {[%clk 0:02:46.7]} 20. Kxg2 {[%clk 0:02:13.1]} 20... h5 {[%clk 0:02:45.6]}
21. Kh1 {[%clk 0:01:55.5]} 21... hxg4 {[%clk 0:02:43.2]} 22. Qxg4 {[%clk
0:01:54.1]} 22... Qh7 {[%clk 0:02:32.9]} 23. Rg1 {[%clk 0:01:26.3]} 23... Bf6
{[%clk 0:02:30.5]} 24. Qd7 {[%clk 0:01:24.6]} 24... f3 {[%clk 0:02:18.2]} 25.
Qxc7 {[%clk 0:01:18.7]} 25... Rg2 {[%clk 0:02:07.1]} 26. Rxg2 {[%clk 0:01:15.9]}
26... fxg2+ {[%clk 0:02:05.7]} 27. Kxg2 {[%clk 0:01:15.3]} 27... Rg8+ {[%clk
0:02:03.7]} 28. Kf3 {[%clk 0:01:07.2]} 28... Qxh2 {[%clk 0:01:59.7]} 29. Qxd6
{[%clk 0:01:03]} 29... Qg2+ {[%clk 0:01:51.1]} 30. Ke3 {[%clk 0:01:01.1]} 30...
Bg5+ {[%clk 0:01:47.7]} 31. Kd3 {[%clk 0:00:53.3]} 31... Qf3+ {[%clk 0:01:45.1]}
32. Kc2 {[%clk 0:00:50.5]} 32... Qxf2+ {[%clk 0:01:40.4]} 33. Kb1 {[%clk
0:00:45.2]} 33... Qf6 {[%clk 0:01:35.6]} 34. Rh1+ {[%clk 0:00:31.9]} 34... Kg7
{[%clk 0:01:33.7]} 35. Qd7 {[%clk 0:00:27.9]} 35... Rh8 {[%clk 0:01:20.5]} 36.
Rd1 {[%clk 0:00:23.7]} 36... Rh2 {[%clk 0:01:17.4]} 37. d6 {[%clk 0:00:23.1]}
37... Qf2 {[%clk 0:01:08.2]} 38. Na4 {[%clk 0:00:21.4]} 38... Qc2+ {[%clk
0:01:05.7]} 39. Ka1 {[%clk 0:00:19.5]} 39... Qxd1# {[%clk 0:01:04.8]} 0-1

[Event "Live Chess"]
[Site "Chess.com"]
[Date "2023.05.21"]
[Round "-"]
[White "SinisterSide"]
[Black "TheSmoulderingMaster"]
[Result "0-1"]
[WhiteElo "490"]
[BlackElo "1657"]
[TimeControl "300"]
[EndTime "8:15:21 PDT"]
[Termination "TheSmoulderingMaster won by resignation"]

1. e4 {[%clk 0:04:59.2]} 1... c5 {[%clk 0:04:58.7]} 2. Nc3 {[%clk 0:04:55.3]}
2... Nc6 {[%clk 0:04:57.2]} 3. Nf3 {[%clk 0:04:55.2]} 3... e6 {[%clk 0:04:56.5]}
4. Bc4 {[%clk 0:04:55.1]} 4... g6 {[%clk 0:04:55.5]} 5. Ng5 {[%clk 0:04:55]}
5... Qxg5 {[%clk 0:04:52.2]} 6. d3 {[%clk 0:04:53.3]} 6... Qxg2 {[%clk
0:04:50.8]} 7. Bg5 {[%clk 0:04:53.2]} 7... Qxh1+ {[%clk 0:04:46.9]} 8. Ke2
{[%clk 0:04:49.1]} 8... Nd4+ {[%clk 0:04:46]} 9. Kd2 {[%clk 0:04:47.9]} 9...
Nf3+ {[%clk 0:04:40.3]} 10. Qxf3 {[%clk 0:04:46.4]} 10... Qxf3 {[%clk
0:04:38.7]} 11. Ke1 {[%clk 0:04:43.5]} 0-1

[Event "Live Chess"]
[Site "Chess.com"]
[Date "2023.05.21"]
[Round "-"]
[White "jimwad"]
[Black "GEMdzq"]
[Result "0-1"]
[WhiteElo "1218"]
[BlackElo "2225"]
[TimeControl "300"]
[EndTime "8:15:35 PDT"]
[Termination "GEMdzq won by checkmate"]

1. c4 {[%clk 0:04:57]} 1... b6 {[%clk 0:04:58.5]} 2. Nf3 {[%clk 0:04:55]} 2...
Bb7 {[%clk 0:04:58.1]} 3. d4 {[%clk 0:04:53.7]} 3... e6 {[%clk 0:04:57.7]} 4.
Nc3 {[%clk 0:04:51.5]} 4... f5 {[%clk 0:04:57.1]} 5. d5 {[%clk 0:04:48]} 5...
Bd6 {[%clk 0:04:51.3]} 6. dxe6 {[%clk 0:04:42.6]} 6... dxe6 {[%clk 0:04:50]} 7.
Bg5 {[%clk 0:04:28.7]} 7... Nf6 {[%clk 0:04:48.7]} 8. e3 {[%clk 0:04:24.7]} 8...
O-O {[%clk 0:04:47.1]} 9. Bd3 {[%clk 0:04:22.1]} 9... Nbd7 {[%clk 0:04:45.3]}
10. O-O {[%clk 0:04:20]} 10... Nc5 {[%clk 0:04:43.7]} 11. Bc2 {[%clk 0:04:17.4]}
11... Qe8 {[%clk 0:04:39.6]} 12. Bxf6 {[%clk 0:04:10.1]} 12... Rxf6 {[%clk
0:04:38.3]} 13. b4 {[%clk 0:04:02.1]} 13... Qh5 {[%clk 0:04:31]} 14. h3 {[%clk
0:03:47.7]} 14... Rg6 {[%clk 0:04:19.4]} 15. Kh1 {[%clk 0:02:52.1]} 15... Ne4
{[%clk 0:03:48.7]} 16. Nh2 {[%clk 0:02:34.2]} 16... Qxh3 {[%clk 0:03:40]} 17.
gxh3 {[%clk 0:02:32.3]} 17... Nxf2# {[%clk 0:03:38.9]} 0-1

[Event "Live Chess"]
[Site "Chess.com"]
[Date "2023.05.21"]
[Round "-"]
[White "LaupMiths"]
[Black "Shepherds_Pie"]
[Result "0-1"]
[WhiteElo "1815"]
[BlackElo "1942"]
[TimeControl "300"]
[EndTime "8:15:42 PDT"]
[Termination "Shepherds_Pie won by resignation"]

1. d4 {[%clk 0:04:56.5]} 1... Nf6 {[%clk 0:04:57.8]} 2. c4 {[%clk 0:04:54.7]}
2... c5 {[%clk 0:04:56.6]} 3. Nf3 {[%clk 0:04:51.9]} 3... cxd4 {[%clk
0:04:55.3]} 4. Nxd4 {[%clk 0:04:50.7]} 4... e5 {[%clk 0:04:54.1]} 5. Nb5 {[%clk
0:04:48.3]} 5... d5 {[%clk 0:04:52.3]} 6. cxd5 {[%clk 0:04:42.8]} 6... Bc5
{[%clk 0:04:50.9]} 7. N1c3 {[%clk 0:04:39.9]} 7... O-O {[%clk 0:04:48.7]} 8. g3
{[%clk 0:04:34.6]} 8... a6 {[%clk 0:04:47.3]} 9. Na3 {[%clk 0:04:32.5]} 9... b5
{[%clk 0:04:45.1]} 10. Nc2 {[%clk 0:04:30.5]} 10... Ng4 {[%clk 0:04:36.9]} 11.
Ne3 {[%clk 0:04:22.1]} 11... Nxe3 {[%clk 0:04:34.2]} 12. Bxe3 {[%clk 0:04:21.5]}
12... Bxe3 {[%clk 0:04:32.9]} 13. fxe3 {[%clk 0:04:21.4]} 13... f5 {[%clk
0:04:25.8]} 14. Bg2 {[%clk 0:04:19.9]} 14... Qb6 {[%clk 0:04:23.7]} 15. Qd3
{[%clk 0:04:16.1]} 15... Nd7 {[%clk 0:04:21]} 16. O-O {[%clk 0:04:13.6]} 16...
Rb8 {[%clk 0:04:18.5]} 17. d6 {[%clk 0:04:07.1]} 17... f4 {[%clk 0:04:11.4]} 18.
Kh1 {[%clk 0:03:50]} 18... Nf6 {[%clk 0:04:06.1]} 19. exf4 {[%clk 0:03:42]}
19... e4 {[%clk 0:04:00.4]} 20. Nxe4 {[%clk 0:03:35]} 20... Bb7 {[%clk 0:03:59]}
21. Nxf6+ {[%clk 0:03:32.1]} 21... Rxf6 {[%clk 0:03:57.5]} 22. d7 {[%clk
0:03:30.4]} 22... Rd8 {[%clk 0:03:55.7]} 23. e4 {[%clk 0:03:24.1]} 23... Rd6
{[%clk 0:03:51.7]} 24. Qb3+ {[%clk 0:03:22.9]} 24... Kh8 {[%clk 0:03:50.2]} 25.
Rad1 {[%clk 0:03:06.7]} 25... R6xd7 {[%clk 0:03:46.1]} 26. Rxd7 {[%clk 0:03:04]}
26... Rxd7 {[%clk 0:03:45.1]} 27. h3 {[%clk 0:02:57.2]} 27... h6 {[%clk
0:03:40.4]} 28. f5 {[%clk 0:02:49.5]} 28... Rd4 {[%clk 0:03:37.2]} 29. Qf7
{[%clk 0:02:41.4]} 29... Rxe4 {[%clk 0:03:29.9]} 30. f6 {[%clk 0:02:31]} 30...
gxf6 {[%clk 0:03:19.9]} 31. Qxf6+ {[%clk 0:02:09.6]} 31... Qxf6 {[%clk
0:03:12.4]} 32. Rxf6 {[%clk 0:02:09.5]} 32... Re1+ {[%clk 0:03:10.2]} 33. Kh2
{[%clk 0:02:08]} 33... Re2 {[%clk 0:03:06.5]} 34. Rxh6+ {[%clk 0:01:52.8]} 34...
Kg7 {[%clk 0:03:04.9]} 35. Rb6 {[%clk 0:01:50.6]} 35... Bxg2 {[%clk 0:03:02.9]}
36. Kg1 {[%clk 0:01:45.1]} 36... Rxb2 {[%clk 0:02:58.3]} 37. Rxa6 {[%clk
0:01:43.4]} 37... Bd5 {[%clk 0:02:55.6]} 38. a4 {[%clk 0:01:40.8]} 38... bxa4
{[%clk 0:02:48.2]} 39. Rxa4 {[%clk 0:01:39]} 39... Rg2+ {[%clk 0:02:46.3]} 40.
Kf1 {[%clk 0:01:36.2]} 40... Kf6 {[%clk 0:02:40]} 41. Rf4+ {[%clk 0:01:34]}
41... Ke5 {[%clk 0:02:37.9]} 42. Rg4 {[%clk 0:01:24.7]} 42... Ra2 {[%clk
0:02:31.9]} 43. h4 {[%clk 0:01:19.5]} 43... Bf3 {[%clk 0:02:26.9]} 44. Rf4
{[%clk 0:01:17.4]} 44... Be4 {[%clk 0:02:17.5]} 45. Rg4 {[%clk 0:01:14.8]} 45...
Ra1+ {[%clk 0:02:10.6]} 46. Kf2 {[%clk 0:01:12.5]} 46... Ra2+ {[%clk 0:02:09.2]}
47. Ke3 {[%clk 0:01:11]} 47... Ra3+ {[%clk 0:02:07.6]} 48. Kf2 {[%clk
0:01:08.7]} 48... Bf3 {[%clk 0:02:04.5]} 49. Rf4 {[%clk 0:01:06.4]} 49... Bh5
{[%clk 0:02:01.4]} 50. Rb4 {[%clk 0:00:55.5]} 50... Ra2+ {[%clk 0:01:57.5]} 51.
Kg1 {[%clk 0:00:49.7]} 51... Bf3 {[%clk 0:01:53.5]} 52. h5 {[%clk 0:00:47.1]}
52... Rg2+ {[%clk 0:01:46.9]} 53. Kf1 {[%clk 0:00:42.8]} 53... Rxg3 {[%clk
0:01:45.7]} 54. Kf2 {[%clk 0:00:38.7]} 54... Rh3 {[%clk 0:01:44]} 55. Rb3 {[%clk
0:00:29]} 55... Ke4 {[%clk 0:01:42.5]} 56. Rb4+ {[%clk 0:00:27.6]} 56... Kf5
{[%clk 0:01:32.4]} 57. Rb3 {[%clk 0:00:24.7]} 57... Rh2+ {[%clk 0:01:28.8]} 58.
Kg3 {[%clk 0:00:20]} 58... Rxh5 {[%clk 0:01:11.5]} 59. Rxf3+ {[%clk 0:00:16.2]}
59... Ke5 {[%clk 0:01:10.2]} 60. Rf7 {[%clk 0:00:14.2]} 60... Ke6 {[%clk
0:01:08.7]} 61. Rf4 {[%clk 0:00:12.2]} 61... Ke5 {[%clk 0:01:07.4]} 62. Rg4
{[%clk 0:00:12.1]} 62... Rf5 {[%clk 0:01:05]} 63. Ra4 {[%clk 0:00:11.4]} 63...
Rf8 {[%clk 0:01:03.5]} 64. Ra5+ {[%clk 0:00:10.4]} 64... Kd4 {[%clk 0:01:02.4]}
65. Ra4+ {[%clk 0:00:09.6]} 65... Kc5 {[%clk 0:01:01.5]} 66. Ra3 {[%clk
0:00:09.5]} 66... Kb4 {[%clk 0:01:00.7]} 67. Rc3 {[%clk 0:00:09.4]} 67... Kxc3
{[%clk 0:00:59.2]} 68. Kg4 {[%clk 0:00:06.5]} 68... Kd4 {[%clk 0:00:58.1]} 69.
Kg5 {[%clk 0:00:06.4]} 69... Ke4 {[%clk 0:00:56.9]} 70. Kg6 {[%clk 0:00:06.3]}
70... Rf1 {[%clk 0:00:55.9]} 71. Kg7 {[%clk 0:00:06.2]} 71... Ke5 {[%clk
0:00:54.8]} 72. Kg6 {[%clk 0:00:06.1]} 0-1

[Event "Live Chess"]
[Site "Chess.com"]
[Date "2023.05.21"]
[Round "-"]
[White "LanceMaster23"]
[Black "AttackingSnowLeopard"]
[Result "0-1"]
[WhiteElo "1971"]
[BlackElo "2161"]
[TimeControl "300"]
[EndTime "8:15:53 PDT"]
[Termination "AttackingSnowLeopard won on time"]

1. Nf3 {[%clk 0:04:58.2]} 1... d5 {[%clk 0:04:58.2]} 2. d4 {[%clk 0:04:57.7]}
2... Nf6 {[%clk 0:04:56.3]} 3. Bf4 {[%clk 0:04:57.3]} 3... c5 {[%clk 0:04:54.9]}
4. e3 {[%clk 0:04:56.8]} 4... Nc6 {[%clk 0:04:53.7]} 5. c3 {[%clk 0:04:56.3]}
5... cxd4 {[%clk 0:04:52.6]} 6. exd4 {[%clk 0:04:56.2]} 6... Bf5 {[%clk
0:04:50.8]} 7. Nbd2 {[%clk 0:04:54.6]} 7... h6 {[%clk 0:04:49.4]} 8. Be2 {[%clk
0:04:53.8]} 8... e6 {[%clk 0:04:48.5]} 9. O-O {[%clk 0:04:52]} 9... Bd6 {[%clk
0:04:46.9]} 10. Bg3 {[%clk 0:04:50.9]} 10... O-O {[%clk 0:04:45.1]} 11. Re1
{[%clk 0:04:48.9]} 11... Qc7 {[%clk 0:04:43.7]} 12. a4 {[%clk 0:04:46.6]} 12...
Ne4 {[%clk 0:04:37]} 13. Nxe4 {[%clk 0:04:44.5]} 13... Bxe4 {[%clk 0:04:33.5]}
14. Nd2 {[%clk 0:04:43.5]} 14... Bh7 {[%clk 0:04:32.5]} 15. Bf3 {[%clk
0:04:42.2]} 15... Ne7 {[%clk 0:04:28.3]} 16. Qb3 {[%clk 0:04:33.4]} 16... Nf5
{[%clk 0:04:21.6]} 17. Nf1 {[%clk 0:04:10.6]} 17... Bxg3 {[%clk 0:04:17.1]} 18.
hxg3 {[%clk 0:04:05.6]} 18... Nd6 {[%clk 0:04:16]} 19. Ne3 {[%clk 0:03:41.2]}
19... a5 {[%clk 0:04:10.7]} 20. Bd1 {[%clk 0:03:02.1]} 20... Rab8 {[%clk
0:04:03.5]} 21. Bc2 {[%clk 0:03:00.6]} 21... Bxc2 {[%clk 0:04:01.3]} 22. Qxc2
{[%clk 0:02:50.5]} 22... b5 {[%clk 0:04:00]} 23. axb5 {[%clk 0:02:48.9]} 23...
Rxb5 {[%clk 0:03:58.5]} 24. Re2 {[%clk 0:02:35.8]} 24... Rfb8 {[%clk 0:03:55.8]}
25. Rb1 {[%clk 0:02:19.4]} 25... Nc4 {[%clk 0:03:49.2]} 26. Nxc4 {[%clk
0:01:50.1]} 26... Qxc4 {[%clk 0:03:46.2]} 27. Re3 {[%clk 0:01:38]} 27... a4
{[%clk 0:03:14.9]} 28. Qe2 {[%clk 0:01:35.8]} 28... Qxe2 {[%clk 0:03:03.2]} 29.
Rxe2 {[%clk 0:01:35.7]} 29... Rb3 {[%clk 0:02:55.5]} 30. Ra1 {[%clk 0:01:25.6]}
30... Ra8 {[%clk 0:02:44.7]} 31. Rc2 {[%clk 0:01:17.8]} 31... Kf8 {[%clk
0:02:41.3]} 32. c4 {[%clk 0:01:13.7]} 32... dxc4 {[%clk 0:02:37.2]} 33. Rxc4
{[%clk 0:01:13.6]} 33... Rxb2 {[%clk 0:02:36.3]} 34. Rcxa4 {[%clk 0:01:09]}
34... Rxa4 {[%clk 0:02:34.2]} 35. Rxa4 {[%clk 0:01:07.7]} 35... Rd2 {[%clk
0:02:32.5]} 36. Kf1 {[%clk 0:01:06.1]} 36... Ke7 {[%clk 0:02:29]} 37. Ke1 {[%clk
0:01:05.3]} 37... Rb2 {[%clk 0:02:27.4]} 38. Ra7+ {[%clk 0:01:02]} 38... Kf6
{[%clk 0:02:25.8]} 39. Rd7 {[%clk 0:01:01.7]} 39... h5 {[%clk 0:02:20.3]} 40. d5
{[%clk 0:00:58.5]} 40... e5 {[%clk 0:02:19.4]} 41. Ra7 {[%clk 0:00:37.8]} 41...
Rb6 {[%clk 0:02:11.1]} 42. Ke2 {[%clk 0:00:31.9]} 42... Rd6 {[%clk 0:02:09.3]}
43. Ra5 {[%clk 0:00:29.8]} 43... e4 {[%clk 0:02:08.1]} 44. Ke3 {[%clk
0:00:27.8]} 44... Ke5 {[%clk 0:02:07.7]} 45. Ra4 {[%clk 0:00:26.5]} 45... f5
{[%clk 0:02:05.6]} 46. f4+ {[%clk 0:00:24.8]} 46... exf3 {[%clk 0:02:02.8]} 47.
gxf3 {[%clk 0:00:23.2]} 47... Rxd5 {[%clk 0:02:02.3]} 48. f4+ {[%clk 0:00:20.7]}
48... Kf6 {[%clk 0:02:01]} 49. Ra6+ {[%clk 0:00:19.7]} 49... Kf7 {[%clk
0:02:00]} 50. Ra7+ {[%clk 0:00:19.1]} 50... Kg6 {[%clk 0:01:59.1]} 51. Ra6+
{[%clk 0:00:18.6]} 51... Kh7 {[%clk 0:01:58.4]} 52. Ra7 {[%clk 0:00:15.6]} 52...
Rb5 {[%clk 0:01:57.6]} 53. Rf7 {[%clk 0:00:12.8]} 53... Rb3+ {[%clk 0:01:55.3]}
54. Kf2 {[%clk 0:00:11.6]} 54... Kg6 {[%clk 0:01:54.7]} 55. Rf8 {[%clk
0:00:11.1]} 55... Ra3 {[%clk 0:01:49.6]} 56. Kg2 {[%clk 0:00:10.8]} 56... Ra2+
{[%clk 0:01:43.1]} 57. Kh3 {[%clk 0:00:10.3]} 57... Rf2 {[%clk 0:01:38.6]} 58.
Rb8 {[%clk 0:00:09.6]} 58... h4 {[%clk 0:01:35.9]} 59. Rb6+ {[%clk 0:00:09.5]}
59... Kh5 {[%clk 0:01:32.4]} 60. gxh4 {[%clk 0:00:07.9]} 60... Rf3+ {[%clk
0:01:31.2]} 61. Kg2 {[%clk 0:00:06.1]} 61... Rxf4 {[%clk 0:01:30.9]} 62. Rb5
{[%clk 0:00:04.8]} 62... Kxh4 {[%clk 0:01:28.5]} 63. Rb7 {[%clk 0:00:04.5]}
63... g5 {[%clk 0:01:26.8]} 64. Rh7+ {[%clk 0:00:04.1]} 64... Kg4 {[%clk
0:01:26]} 65. Kh2 {[%clk 0:00:03.2]} 65... Ra4 {[%clk 0:01:24.5]} 66. Kg1 {[%clk
0:00:03.1]} 66... f4 {[%clk 0:01:23.1]} 67. Kf2 {[%clk 0:00:03]} 67... Ra2+
{[%clk 0:01:21.3]} 68. Kf1 {[%clk 0:00:02.3]} 68... Kg3 {[%clk 0:01:20.6]} 69.
Rh8 {[%clk 0:00:01]} 69... g4 {[%clk 0:01:19.7]} 70. Ke1 {[%clk 0:00:00.1]}
70... Ra1+ {[%clk 0:01:17.9]} 0-1